bitfinex/quotes_ETHUSD_20240820
["timestamp","ask_amount","ask_price","bid_price","bid_amount"]
[1724190362136,3.86374,2588.2,2587.6,0.55]
[1724190362293,3.86385,2588.1,2587.6,4.41449]
[1724190362495,3.86374,2588.2,2587.6,4.41449]
[1724190362835,2.3365,2588.3,2587.6,4.4145]
[1724190362997,2.3365,2588.3,2587.8,3.86417]
[1724190363333,3.86342,2588.4,2587.9,4.41413]
[1724190365195,0.20397611,2588.3,2587.9,4.41413]
[1724190365991,0.20397611,2588.3,2587.9,5.24196]
[1724190366208,3.86328,2588.5,2587.9,5.24196]
[1724190366413,0.20409613,2588.2,2588.1,3.86376]
[1724190366598,3.86317,2588.6,2588.1,4.41376]
[1724190366793,3.86317,2588.6,2588.0,7.72779]
[1724190366794,0.20409613,2588.2,2588.0,7.72779]
[1724190367100,3.86317,2588.6,2588.1,0.55]
[1724190368121,3.86317,2588.6,2588.1,4.41381]
[1724190368534,3.86317,2588.6,2588.1,0.55]
[1724190369808,3.86317,2588.6,2588.1,4.41381]
[1724190373636,2.3396,2588.7,2588.1,4.41381]
[1724190373946,6.20265,2588.7,2588.1,5.324363]
[1724190374245,6.20265,2588.7,2588.2,3.86366]
[1724190375050,3.86305,2588.7,2588.2,3.86366]
[1724190377214,3.86282,2588.8,2588.2,10.02316]
[1724190377516,3.86282,2588.8,2588.2,6.1595]
[1724190377851,3.86282,2588.8,2588.3,0.7620053]
[1724190378715,0.01685623,2588.6,2588.3,0.7620053]
[1724190379676,0.01685623,2588.6,2588.4,3.86337]
[1724190380460,0.20439071,2588.5,2588.4,3.86337]
[1724190380920,0.20439071,2588.5,2588.4,4.41337]
[1724190381118,0.20439071,2588.5,2588.4,5.54684753]
[1724190382468,0.20439071,2588.5,2588.4,9.41023753]
[1724190385354,0.01685623,2588.6,2588.5,7.72648]
[1724190385672,0.01685623,2588.6,2588.5,8.27648]
[1724190388731,0.22173773,2588.6,2588.5,8.27648]
[1724190388972,0.01685623,2588.6,2588.5,9.45817628]
[1724190395940,0.01685623,2588.6,2588.5,15.64611628]
[1724190396142,0.01685623,2588.6,2588.5,38.50411628]
[1724190396492,0.01685623,2588.6,2588.5,42.36735628]
[1724190396910,0.01685623,2588.6,2588.5,41.01235628]
[1724190397215,0.01685623,2588.6,2588.5,44.01235628]
[1724190397756,0.01685623,2588.6,2588.5,40.14911628]
[1724190398589,6.23e-06,2588.6,2588.5,44.01235628]
[1724190400171,6.30219,2590.1,2589.5,3.86163]
[1724190400374,0.20557928,2590.0,2589.6,0.55]
[1724190400568,6.30219,2590.1,2589.6,0.55]
[1724190401093,2.4413,2590.1,2589.6,4.4115]
[1724190401308,2.4413,2590.1,2589.7,0.827313]
[1724190401493,0.20557928,2590.0,2589.7,0.827313]
[1724190402310,0.20557928,2590.0,2589.8,3.86125]
[1724190402517,0.20557928,2590.0,2589.8,0.55]
[1724190402662,3.85994,2590.8,2589.8,0.55]
[1724190402663,3.85994,2590.8,2590.2,3.8607]
[1724190402862,3.85994,2590.8,2590.3,0.55]
[1724190406089,7.71985,2590.8,2590.3,0.55]
[1724190406830,2.4403,2590.4,2589.8,3.86129]
[1724190407031,2.4403,2590.4,2589.7,0.827313]
[1724190407233,2.4403,2589.8,2589.3,3.86195]
[1724190409076,0.20557928,2589.4,2589.1,3.86233]
[1724190409275,10.72307,2589.7,2589.1,3.86233]
[1724190409524,0.20557928,2589.3,2589.1,5.375822]
[1724190409732,10.72307,2589.7,2589.1,3.86233]
[1724190409922,0.20557928,2589.2,2589.1,3.86233]
[1724190410778,0.20557928,2589.2,2589.1,4.41233]
[1724190411682,3.8616,2589.6,2589.1,4.41233]
[1724190411996,3.8616,2589.6,2589.2,0.55]
[1724190412632,3.86176,2589.5,2589.1,0.55]
[1724190416949,2.4403,2589.8,2589.1,4.3421394]
[1724190417149,2.4403,2589.8,2589.2,0.55]
[1724190417300,3.86145,2589.7,2589.2,0.55]
[1724190417649,4.06708921,2589.7,2589.2,0.55]
[1724190418059,3.8616,2589.6,2589.2,0.55]
[1724190418400,0.20563921,2589.5,2589.2,0.55]
[1724190418623,0.20563921,2589.5,2589.2,1.03921294]
[1724190423739,0.20854675,2589.5,2589.2,1.03921294]
[1724190426544,0.20854675,2589.5,2589.3,1.644]
[1724190426714,0.20854675,2589.5,2589.4,0.55]
[1724190434634,3.8619,2589.4,2589.1,1.644]
[1724190434830,0.20569917,2589.3,2589.2,0.55]
[1724190436246,4.06783917,2589.3,2589.0,1.644]
[1724190436564,4.06783917,2589.3,2589.1,0.55]
[1724190437655,0.20569917,2589.3,2589.1,0.55]
[1724190443843,0.20569917,2589.3,2589.0,5.50648]
[1724190445388,0.20569917,2589.3,2588.8,23.33272]
[1724190445389,2.3085,2589.2,2588.9,1.644]
[1724190445727,2.3085,2589.2,2589.0,0.55]
[1724190446055,0.20569917,2589.1,2589.0,0.55]
[1724190446586,2.3085,2589.2,2589.0,0.55]
[1724190446996,0.20569917,2589.1,2589.0,0.55]
[1724190447698,7.72388,2589.4,2589.0,0.55]
[1724190447997,3.86205,2589.3,2589.0,0.55]
[1724190448358,0.20569917,2589.2,2589.0,0.55]
[1724190448933,3.86205,2589.3,2589.0,0.55]
[1724190449056,0.20569917,2589.1,2589.0,0.55]
[1724190449257,3.86205,2589.3,2589.0,0.55]
[1724190449500,0.20569917,2589.1,2589.0,0.55]
[1724190449818,0.20552477,2589.1,2589.0,0.55]
[1724190450309,3.86205,2589.3,2589.0,0.55]
[1724190450454,0.20552477,2589.1,2589.0,0.55]
[1724190450659,3.86205,2589.3,2589.0,0.55]
[1724190450863,0.20552477,2589.1,2589.0,0.55]
[1724190451396,3.86205,2589.3,2589.0,0.55]
[1724190451598,0.20552477,2589.1,2589.0,0.55]
[1724190451761,3.86205,2589.3,2589.0,0.55]
[1724190451970,0.20552477,2589.1,2589.0,0.55]
[1724190452302,6.27455,2589.3,2589.0,0.55]
[1724190452681,0.20552477,2589.2,2589.0,0.55]
[1724190453004,6.27455,2589.3,2589.0,0.55]
[1724190453190,0.20552477,2589.1,2589.0,0.55]
[1724190453411,3.86221,2589.2,2589.0,0.55]
[1724190453629,0.20552477,2589.1,2589.0,0.55]
[1724190455421,4.06786477,2589.1,2588.9,1.644]
[1724190455623,3.86253,2589.0,2588.6,11.14531554]
[1724190455850,3.86253,2589.0,2588.8,1.644]
[1724190456309,0.20552477,2588.9,2588.8,1.644]
[1724190456514,0.20552477,2588.9,2588.8,2.194]
[1724190457090,3.86234,2589.1,2588.8,2.194]
[1724190457413,0.20529041,2589.0,2588.8,2.194]
[1724190457632,3.86264,2588.9,2588.8,2.194]
[1724190457923,3.86264,2588.9,2588.6,1.644]
[1724190458126,3.86264,2588.9,2588.7,0.55]
[1724190458355,0.20529041,2588.8,2588.7,0.55]
[1724190462451,3.8625,2589.0,2588.7,0.55]
[1724190462733,0.20515411,2588.8,2588.7,0.55]
[1724190462944,3.8625,2589.0,2588.7,0.55]
[1724190463143,0.20515411,2588.8,2588.7,0.55]
[1724190463323,3.8625,2589.0,2588.7,0.55]
[1724190466610,6.24214,2589.1,2588.6,1.644]
[1724190466611,3.86281,2588.8,2588.6,1.644]
[1724190467051,0.20515411,2588.7,2588.6,1.644]
[1724190467263,3.86281,2588.8,2588.6,1.644]
[1724190467549,0.20515411,2588.7,2588.6,1.644]
[1724190467766,3.86281,2588.8,2588.6,1.644]
[1724190467900,0.20515411,2588.7,2588.6,1.644]
[1724190468105,0.20515411,2588.7,2588.4,1.644]
[1724190468304,0.20515411,2588.7,2588.5,0.55]
[1724190468504,0.20515411,2588.6,2588.5,0.55]
[1724190468746,3.86281,2588.8,2588.5,0.55]
[1724190468907,0.20515411,2588.7,2588.5,0.55]
[1724190469102,6.34556,2588.7,2588.5,0.55]
[1724190469414,0.20515411,2588.6,2588.5,0.55]
[1724190471109,0.20515411,2588.6,2588.1,12.27]
[1724190471310,3.86331,2588.5,2588.4,1.644]
[1724190471548,4.06846411,2588.5,2588.4,1.644]
[1724190480592,0.20515411,2588.5,2588.4,11.80418]
[1724190480793,0.20515411,2588.5,2588.4,13.534598]
[1724190480961,10.15635,2589.4,2588.7,3.86285]
[1724190481313,0.00290754,2589.5,2589.1,1.644]
[1724190481314,0.20497418,2589.3,2589.1,1.644]
[1724190481592,3.86465754,2589.5,2589.1,1.644]
[1724190481593,3.86472754,2589.5,2589.1,1.644]
[1724190481753,0.20481607,2589.2,2589.1,1.644]
[1724190481954,3.86472754,2589.5,2589.1,1.644]
[1724190482156,0.20481607,2589.4,2589.1,1.644]
[1724190484395,0.20481607,2589.4,2589.1,5.50634]
[1724190485702,0.20481607,2589.4,2589.1,9.36853]
[1724190486006,0.20481607,2589.4,2589.1,5.50625]
[1724190486317,0.20481607,2589.4,2589.3,11.85808]
[1724190486491,6.07e-06,2589.4,2589.3,18.72012]
[1724190486664,0.00290754,2589.5,2589.4,17.93756]
[1724190486665,7.54e-06,2589.5,2589.4,17.93756]
[1724190486861,7.54e-06,2589.5,2589.4,25.34945]
[1724190487087,7.54e-06,2589.5,2589.4,29.74795172]
[1724190487288,0.1241851,2590.9,2590.4,3.86038]
[1724190487495,3.85887,2591.5,2590.8,3.85972]
[1724190487496,3.85899,2591.4,2590.8,3.85972]
[1724190487703,3.6670193,2591.5,2590.9,0.55]
[1724190487894,3.85896,2591.4,2590.9,0.55]
[1724190488308,3.6670193,2591.5,2590.9,6.05363]
[1724190488506,3.6670193,2591.5,2591.0,3.85943]
[1724190488684,3.6670193,2591.5,2591.1,0.55]
[1724190490310,3.6670193,2591.5,2591.0,0.55]
[1724190491608,7.5258893,2591.5,2591.0,0.55]
[1724190491808,3.85853,2591.7,2591.0,0.55]
[1724190491987,3.0,2591.6,2591.0,6.82409]
[1724190492188,3.85853,2591.7,2591.1,3.85928]
[1724190492385,3.85853,2591.7,2591.2,0.55]
[1724190492593,3.85863,2591.6,2591.2,0.55]
[1724190492932,3.85863,2591.6,2591.1,0.55]
[1724190493092,7.71711,2591.7,2591.1,1.7251893]
[1724190493274,3.85867,2591.6,2591.1,1.7251893]
[1724190493925,3.8588,2591.5,2591.1,0.55]
[1724190494134,3.85914,2591.3,2590.9,0.55]
[1724190494334,3.85937,2591.1,2590.6,3.86]
[1724190494494,3.85937,2591.1,2590.7,0.386]
[1724190494833,0.20061489,2591.0,2590.7,0.386]
[1724190495833,0.20061489,2591.0,2590.8,0.55]
[1724190497082,3.8599,2590.8,2590.2,3.86061]
[1724190497387,3.86042,2590.4,2589.9,3.86107]
[1724190497593,0.20061489,2590.3,2589.9,3.86107]
[1724190498178,0.20061489,2590.3,2589.9,7.72213]
[1724190498383,3.86042,2590.4,2589.9,7.72213]
[1724190498643,7.72041,2590.6,2590.0,1.008183]
[1724190498810,3.86017,2590.6,2590.0,1.008183]
[1724190499018,4.05800278,2590.5,2590.0,1.008183]
[1724190499907,4.05800278,2590.5,2590.1,0.55]
[1724190503408,4.05800278,2590.5,2590.1,1.0919233]
[1724190505097,0.19772278,2590.5,2590.1,4.9527533]
[1724190505520,3.85996,2590.7,2590.1,4.9527533]
[1724190505521,3.86019,2590.6,2590.1,4.9527533]
[1724190505684,0.19757005,2590.4,2590.1,4.9527533]
[1724190505889,3.86019,2590.6,2590.2,0.49527533]
[1724190506083,0.19757005,2590.3,2590.2,0.49527533]
[1724190506324,3.86026,2590.5,2590.2,0.55]
[1724190506508,0.19757005,2590.3,2590.2,0.55]
[1724190507121,3.86026,2590.5,2590.2,0.55]
[1724190507320,0.19757005,2590.3,2590.2,0.55]
[1724190507528,3.86026,2590.5,2590.3,0.55]
[1724190508043,3.86026,2590.5,2590.2,0.55]
[1724190508201,3.86026,2590.5,2590.2,0.99028833]
[1724190509729,7.72059,2590.5,2590.2,0.99028833]
[1724190510252,3.86026,2590.5,2590.2,0.99028833]
[1724190511852,7.72061,2590.5,2590.2,0.99028833]
[1724190512427,7.72061,2590.5,2590.3,1.643]
[1724190514144,3.86026,2590.5,2590.3,1.643]
[1724190514341,7.72061,2590.5,2590.3,1.643]
[1724190515140,3.86026,2590.5,2590.3,1.643]
[1724190515348,0.1974064,2590.4,2590.3,1.643]
[1724190515535,0.1974064,2590.4,2590.3,2.193]
[1724190517228,0.1974064,2590.4,2590.3,2.51052116]
[1724190517744,3.86013,2590.6,2590.3,2.51052116]
[1724190518347,0.19742276,2590.5,2590.4,0.55]
[1724190520141,3.86004,2590.7,2590.4,2.9377]
[1724190520345,0.19742276,2590.5,2590.4,3.11291995]
[1724190520529,3.86003,2590.7,2590.4,3.11291995]
[1724190520729,7.72006,2590.7,2590.4,3.11291995]
[1724190521185,0.19742276,2590.6,2590.4,3.11291995]
[1724190522543,0.19742276,2590.6,2590.5,4.20329411]
[1724190522751,2.4165,2591.9,2590.5,8.64869411]
[1724190522910,3.85877,2591.5,2591.1,1.643]
[1724190523111,3.8587,2591.6,2591.2,0.55]
[1724190523335,3.85877,2591.5,2591.2,0.55]
[1724190523523,4.05642729,2591.5,2591.2,0.55]
[1724190524251,4.05642729,2591.5,2590.6,6.86008]
[1724190524252,3.85929,2591.2,2590.8,1.643]
[1724190524450,3.85929,2591.2,2590.9,0.55]
[1724190524650,0.19790819,2591.1,2590.9,0.55]
[1724190525051,3.85929,2591.2,2590.9,0.55]
[1724190525442,0.19790819,2591.1,2590.9,0.55]
[1724190525843,7.71825,2591.3,2590.9,0.55]
[1724190526047,0.19790819,2591.0,2590.9,0.55]
[1724190526366,3.8591,2591.3,2590.9,0.55]
[1724190526523,0.19790819,2591.2,2590.9,0.55]
[1724190526963,0.19790819,2591.1,2590.9,0.55]
[1724190527248,3.8591,2591.3,2590.9,0.55]
[1724190527457,0.19790819,2591.0,2590.9,0.55]
[1724190527625,3.8591,2591.3,2590.9,0.55]
[1724190527832,0.19790819,2591.0,2590.9,0.55]
[1724190528920,3.8591,2591.3,2590.9,0.55]
[1724190529121,0.19790819,2591.2,2590.9,0.55]
[1724190529352,3.8591,2591.3,2590.9,0.55]
[1724190529556,0.19790819,2591.2,2590.9,0.55]
[1724190529755,3.8591,2591.3,2590.9,0.55]
[1724190530057,0.19790819,2591.2,2590.9,0.55]
[1724190530357,3.8591,2591.3,2590.9,0.55]
[1724190530654,0.19790819,2591.2,2590.9,0.55]
[1724190531058,3.8591,2591.3,2590.9,0.55]
[1724190531222,0.19790819,2591.1,2590.9,0.55]
[1724190531423,3.8591,2591.3,2590.9,0.55]
[1724190531637,0.19790819,2591.0,2590.9,0.55]
[1724190532122,0.19790819,2591.0,2590.9,4.40961]
[1724190532323,2.4165,2591.4,2590.9,4.40961]
[1724190532548,0.19790819,2591.3,2590.9,4.40961]
[1724190534346,0.19790819,2591.3,2591.0,6.493721]
[1724190534865,0.19804449,2591.2,2591.0,6.493721]
[1724190535170,3.85885,2591.5,2591.0,6.493721]
[1724190535485,0.19804449,2591.4,2591.0,5.50248]
[1724190539364,0.19804449,2591.4,2591.1,4.40925]
[1724190539527,6.27623,2591.6,2591.1,4.40925]
[1724190539728,0.19804449,2591.5,2591.1,4.40925]
[1724190542750,4.05681449,2591.5,2591.1,0.55]
[1724190543449,4.05681449,2591.5,2591.0,5.50248]
[1724190544771,3.85894,2591.4,2591.0,7.179699]
[1724190544975,0.19809902,2591.3,2591.0,7.179699]
[1724190545172,3.85894,2591.4,2591.0,7.179699]
[1724190545394,0.19809902,2591.3,2591.0,7.179699]
[1724190545689,3.85894,2591.4,2591.0,7.179699]
[1724190546037,0.19809902,2591.3,2591.0,7.179699]
[1724190546472,3.85894,2591.4,2591.0,7.179699]
[1724190546776,0.19809902,2591.3,2591.0,7.179699]
[1724190546935,3.85894,2591.4,2591.0,7.179699]
[1724190547143,0.19809902,2591.3,2591.0,7.179699]
[1724190547372,3.85894,2591.4,2591.0,7.179699]
[1724190547574,0.19809902,2591.3,2591.0,5.50248]
[1724190547778,3.85894,2591.4,2591.0,5.50248]
[1724190547979,0.19809902,2591.3,2591.0,5.50248]
[1724190548139,3.85894,2591.4,2591.0,5.50248]
[1724190548339,0.19809902,2591.3,2591.0,5.50248]
[1724190548576,3.85894,2591.4,2591.0,5.50248]
[1724190548778,0.19809902,2591.3,2591.0,5.50248]
[1724190548978,3.85894,2591.4,2591.0,5.50248]
[1724190549272,0.19809902,2591.3,2591.0,5.50248]
[1724190549683,3.85894,2591.4,2591.0,5.50248]
[1724190549983,0.19809902,2591.3,2591.0,5.50248]
[1724190550152,3.85894,2591.4,2591.0,5.50248]
[1724190550354,0.19809902,2591.3,2591.0,5.50248]
[1724190550648,3.85894,2591.4,2591.0,5.50248]
[1724190551046,0.19809902,2591.3,2591.1,2.3015]
[1724190551540,0.19809902,2591.2,2591.0,5.50248]
[1724190551770,3.85878,2591.5,2591.0,5.50248]
[1724190551977,0.19809902,2591.4,2591.0,5.50248]
[1724190554996,0.19809902,2591.4,2591.0,7.409849]
[1724190556487,0.19809902,2591.4,2591.1,3.85935]
[1724190556796,0.19809902,2591.4,2591.2,5.50213]
[1724190556941,3.85848,2591.7,2591.2,6.05213]
[1724190557147,0.19808812,2591.6,2591.2,6.05213]
[1724190558489,4.05671812,2591.6,2591.2,6.05213]
[1724190559954,4.05671812,2591.6,2591.2,2.193]
[1724190561553,4.05671812,2591.6,2591.2,0.55]
[1724190562797,7.91543812,2591.6,2591.2,0.55]
[1724190564793,3.85877,2591.5,2591.2,0.55]
[1724190565194,0.19808812,2591.4,2591.2,0.55]
[1724190567689,0.19808812,2591.4,2590.0,0.3875]
[1724190567690,3.86025,2590.5,2590.0,0.3875]
[1724190568004,3.86025,2590.5,2589.6,11.01689647]
[1724190568005,2.3782,2590.4,2589.6,2.3974]
[1724190568201,2.3782,2590.4,2589.7,1.643]
[1724190568202,3.86073,2590.2,2589.7,1.643]
[1724190568401,3.86109,2590.0,2589.7,1.643]
[1724190568600,0.19833346,2589.9,2589.7,1.643]
[1724190570604,0.19833346,2589.9,2589.8,0.55]
[1724190571314,0.19833346,2589.9,2589.7,0.55]
[1724190571527,4.05948346,2589.9,2589.7,0.55]
[1724190575905,3.8613,2589.8,2589.7,0.55]
[1724190576489,4.05963346,2589.8,2589.7,0.55]
[1724190577593,6.42523346,2589.8,2589.7,0.55]
[1724190579475,6.42523346,2589.8,2589.6,0.55]
[1724190580110,6.2269,2589.8,2589.6,0.55]
[1724190580290,0.19833346,2589.7,2589.6,0.55]
[1724190580685,6.2269,2589.8,2589.6,0.55]
[1724190581105,0.19833346,2589.7,2589.6,0.55]
[1724190581486,3.8613,2589.8,2589.6,0.55]
[1724190581672,0.19833346,2589.7,2589.6,0.55]
[1724190582074,3.8613,2589.8,2589.6,0.55]
[1724190582270,0.19833346,2589.7,2589.6,0.7693]
[1724190582499,3.8613,2589.8,2589.6,0.7693]
[1724190582700,0.19833346,2589.7,2589.6,0.7693]
[1724190582889,3.86145,2589.7,2589.6,0.7693]
[1724190583091,4.05978346,2589.7,2589.6,0.7693]
[1724190583403,3.8616,2589.6,2589.5,1.643]
[1724190583600,4.05916439,2589.6,2589.5,1.643]
[1724190584623,4.05916439,2589.6,2589.5,2.193]
[1724190586205,0.19756439,2589.6,2589.5,2.193]
[1724190586722,4.05916439,2589.6,2589.4,19.47]
[1724190586892,7.72378,2589.4,2589.3,19.47]
[1724190587517,7.72482,2589.1,2588.9,1.643]
[1724190587679,7.72482,2589.1,2588.7,1.643]
[1724190587680,3.8624,2589.1,2588.7,1.643]
[1724190587880,2.3535,2589.3,2588.4,3.86338]
[1724190587881,3.86277,2588.9,2588.4,3.86338]
[1724190588103,3.86277,2588.9,2588.3,3.86345]
[1724190588104,3.86288,2588.8,2588.5,1.643]
[1724190588312,3.86295,2588.7,2588.5,1.643]
[1724190588519,3.86309,2588.6,2588.3,1.643]
[1724190588842,3.86327,2588.5,2588.3,1.643]
[1724190589014,0.19638586,2588.4,2588.3,1.643]
[1724190590242,0.19638586,2588.4,2588.3,2.193]
[1724190590443,0.19638586,2588.4,2588.3,1.643]
[1724190591045,0.19638586,2588.4,2588.1,5.50682]
[1724190591243,0.19638586,2588.4,2588.1,6.561191]
[1724190591809,0.19638586,2588.4,2588.2,0.55]
[1724190592642,6.35866586,2588.4,2588.0,1.643]
[1724190592844,6.35866586,2588.4,2588.0,2.232459]
[1724190593718,0.19638586,2588.4,2588.1,3.86373]
[1724190593924,3.86311,2588.6,2588.2,0.55]
[1724190594543,3.0,2589.2,2588.2,0.55]
[1724190594544,0.19573613,2588.5,2588.2,0.55]
[1724190594747,0.19573613,2588.5,2587.8,4.25168]
[1724190594748,3.86362,2588.3,2587.8,3.86418]
[1724190594938,3.86362,2588.3,2587.9,0.55]
[1724190595140,0.19543573,2588.2,2587.9,0.55]
[1724190595312,4.05914573,2588.2,2587.9,0.55]
[1724190595508,4.05914573,2588.2,2587.7,1.643]
[1724190595509,3.86386,2588.1,2587.7,1.643]
[1724190595808,6.12471,2588.0,2587.4,7.72956]
[1724190596008,6.3201348,2588.0,2587.5,3.86472]
[1724190596312,3.86427,2587.9,2587.4,6.319486]
[1724190596512,3.86447,2587.7,2587.4,2.454706]
[1724190596923,0.1954248,2587.6,2587.4,2.454706]
[1724190597122,0.1954248,2587.6,2587.4,0.811706]
[1724190600546,0.1954248,2587.6,2587.2,3.86503]
[1724190600747,0.1954248,2587.6,2587.3,0.55]
[1724190602125,0.1954248,2587.6,2587.4,3.86478]
[1724190602320,6.12469,2588.0,2587.5,0.55]
[1724190602741,3.86415,2587.9,2587.5,0.55]
[1724190603351,3.86415,2587.9,2587.4,0.55]
[1724190603551,3.86436,2587.8,2587.4,0.55]
[1724190604851,3.86436,2587.8,2587.3,3.86498]
[1724190605049,3.86444,2587.7,2587.3,3.86498]
[1724190605250,0.19498224,2587.6,2587.3,3.86495]
[1724190605518,7.72838,2587.9,2587.3,3.86495]
[1724190605719,7.72838,2587.9,2587.3,4.637967]
[1724190605851,0.19498224,2587.8,2587.3,3.860538]
[1724190606051,0.19498224,2587.8,2587.3,7.725498]
[1724190606466,0.19498224,2587.8,2587.4,3.86488]
[1724190606879,0.19498224,2587.8,2587.5,0.55]
[1724190607696,0.19498224,2587.8,2587.2,3.86511]
[1724190608026,3.86437,2587.8,2587.3,4.41498]
[1724190608891,3.86421,2587.9,2587.4,3.86486]
[1724190609108,0.19498224,2587.8,2587.5,0.55]
[1724190613831,4.05928224,2587.8,2587.5,0.55]
[1724190614227,0.19498224,2587.8,2587.5,0.55]
[1724190619044,2.2607,2588.0,2587.6,3.86455]
[1724190619246,0.18805786,2587.7,2587.6,3.86455]
[1724190619452,2.2607,2588.0,2587.6,4.41455]
[1724190619946,0.18796449,2587.9,2587.7,0.55]
[1724190621135,0.18796449,2587.9,2587.6,0.55]
[1724190625350,4.05212449,2587.9,2587.6,0.55]
[1724190625553,4.05212449,2587.9,2587.5,0.55]
[1724190628363,0.18796449,2587.9,2587.5,4.41472]
[1724190631076,0.18796449,2587.9,2587.6,8.827611]
[1724190631233,0.18796449,2587.9,2587.7,4.41442]
[1724190631431,3.86379,2588.2,2587.7,4.41442]
[1724190631625,0.18803039,2587.8,2587.7,0.55]
[1724190631841,3.86384,2588.1,2587.7,4.41442]
[1724190632046,0.18803039,2587.8,2587.7,4.41442]
[1724190632246,3.86384,2588.1,2587.7,4.41442]
[1724190632438,0.18803039,2587.8,2587.7,4.41442]
[1724190632639,3.86384,2588.1,2587.7,4.41442]
[1724190632863,0.18803039,2587.8,2587.7,4.41442]
[1724190633064,3.86384,2588.1,2587.7,4.41442]
[1724190633238,0.18803039,2587.8,2587.7,4.41442]
[1724190633438,3.86384,2588.1,2587.7,0.55]
[1724190633647,3.86379,2588.2,2587.7,4.41443]
[1724190633648,0.18803039,2587.8,2587.7,4.41443]
[1724190633858,3.86354,2588.3,2587.8,3.86424]
[1724190634171,3.86354,2588.3,2587.9,0.55]
[1724190634639,6.19006,2588.4,2587.9,4.41409]
[1724190634846,6.19006,2588.4,2588.0,3.86398]
[1724190635065,6.19006,2588.4,2588.1,0.55]
[1724190635585,0.18805785,2588.3,2588.1,0.55]
[1724190635747,3.86324,2588.5,2588.1,0.55]
[1724190635947,0.18805785,2588.2,2588.1,0.55]
[1724190636179,3.86324,2588.5,2588.1,0.55]
[1724190636386,0.18805785,2588.2,2588.1,0.55]
[1724190636588,3.86324,2588.5,2588.1,4.41381]
[1724190636749,0.18805785,2588.2,2588.1,4.41381]
[1724190636947,0.18805785,2588.2,2588.1,14.762301]
[1724190637205,7.85e-06,2588.2,2588.1,18.3298]
[1724190637487,7.84037022,2589.6,2588.1,18.3298]
[1724190637488,2.3266,2589.8,2589.2,3.86209]
[1724190637646,2.3266,2589.8,2589.3,4.41194]
[1724190637853,0.18178951,2589.7,2589.4,3.86189]
[1724190638172,3.86118,2589.9,2589.5,0.55]
[1724190638344,0.18178951,2589.6,2589.5,0.55]
[1724190638549,3.86118,2589.9,2589.5,0.55]
[1724190638748,0.18178951,2589.6,2589.5,0.55]
[1724190638988,3.86118,2589.9,2589.5,0.55]
[1724190639153,0.18178951,2589.6,2589.5,0.55]
[1724190639351,3.86118,2589.9,2589.5,0.55]
[1724190639551,0.18178951,2589.6,2589.5,10.7617]
[1724190639757,6.33824,2590.3,2589.6,3.86157]
[1724190640058,6.33824,2590.3,2589.7,0.55]
[1724190640248,6.33824,2590.3,2589.5,4.6843]
[1724190640685,6.33824,2590.3,2589.8,3.86122]
[1724190640985,6.33824,2590.3,2589.9,0.55]
[1724190642047,10.19892,2590.3,2589.9,0.55]
[1724190642405,3.86087,2590.1,2589.6,3.86153]
[1724190642692,3.86087,2590.1,2589.3,3.8619]
[1724190642693,3.86113,2590.0,2589.4,3.86181]
[1724190643008,3.86119,2589.9,2589.3,7.72386]
[1724190643450,3.86119,2589.9,2589.4,3.86189]
[1724190643948,3.86094,2590.1,2589.6,3.86155]
[1724190644151,2.4249,2589.8,2589.1,26.88]
[1724190644355,2.4249,2589.8,2589.3,7.7238]
[1724190644550,2.4249,2589.8,2589.4,0.55]
[1724190644751,0.18261278,2589.7,2589.4,0.55]
[1724190644952,2.4249,2589.8,2589.4,0.55]
[1724190645151,2.4249,2589.8,2589.4,4.41182]
[1724190645370,0.18261278,2589.7,2589.5,3.86173]
[1724190645786,2.4249,2589.8,2589.5,3.86173]
[1724190645994,6.28581,2590.1,2589.6,4.41153]
[1724190646196,0.18261278,2589.7,2589.6,4.41153]
[1724190646488,6.28581,2590.1,2589.6,4.41153]
[1724190646880,0.18261278,2590.0,2589.6,4.41153]
[1724190659268,0.18261278,2590.0,2589.6,0.55]
[1724190659691,4.04368278,2590.0,2589.6,0.55]
[1724190660637,4.04368278,2590.0,2589.6,4.41157]
[1724190660927,4.04368278,2590.0,2589.6,0.55]
[1724190661132,3.86107,2590.0,2589.6,0.55]
[1724190661336,0.18387469,2589.9,2589.6,0.55]
[1724190661712,2.44937469,2589.9,2589.6,0.55]
[1724190661912,2.2655,2589.9,2589.6,0.55]
[1724190662240,0.18387469,2589.8,2589.6,0.55]
[1724190665638,0.18387469,2589.8,2589.5,0.55]
[1724190666606,0.18387469,2589.8,2589.5,4.41173]
[1724190666841,0.18387469,2589.8,2589.5,7.350497]
[1724190667526,0.18387469,2589.8,2589.6,3.8615]
[1724190667710,10.18572,2590.2,2589.7,0.55]
[1724190667898,0.18387469,2590.1,2589.7,0.55]
[1724190670639,0.18387469,2590.1,2589.7,4.41143]
[1724190670940,0.18387469,2590.1,2589.8,0.605543]
[1724190671143,0.18387469,2590.1,2589.9,0.55]
[1724190671480,0.18386372,2590.0,2589.9,0.55]
[1724190672141,0.18386372,2590.0,2589.9,14.48875]
[1724190672345,6.21871,2591.4,2590.8,3.85979]
[1724190672543,0.17783813,2591.3,2590.9,0.55]
[1724190673133,4.03697813,2591.3,2590.9,0.55]
[1724190673555,0.17783813,2591.3,2590.9,0.55]
[1724190674615,4.03690813,2591.3,2590.9,0.55]
[1724190675567,4.03690813,2591.3,2590.9,2.194]
[1724190675568,0.17783813,2591.3,2590.9,2.194]